fUSD/lending_fUSD_20260116
["ID","MTS","AMOUNT","RATE_DAILY","PERIOD"]
[402148972,1768553624466,-500.0,0.00036712,10]
[402148973,1768553624475,-500.0,0.00036712,10]
[402148974,1768553624485,-6302.12,0.00036712,10]
[402148975,1768553624495,-1736.72,0.00036712,10]
[402148976,1768553624504,-500.0,0.00036712,10]
[402148977,1768553624514,-500.0,0.00036712,10]
[402148978,1768553624523,-500.0,0.00036712,10]
[402148979,1768553624533,-500.0,0.00036712,10]
[402148980,1768553624546,-447.7425214,0.00036712,10]
[402148981,1768553624556,-500.0,0.00036712,10]
[402148982,1768553624565,-510.29105798,0.00036712,10]
[402148983,1768553624574,-667.66,0.00036712,10]
[402148984,1768553624586,-500.0,0.00036712,10]
[402148985,1768553624595,-1002.58,0.00036712,10]
[402148986,1768553624606,-501.78031641,0.00036712,10]
[402148987,1768553624616,-528.13,0.00036712,10]
[402148988,1768553624625,-500.0,0.00036712,10]
[402148989,1768553624635,-1041.6,0.00036712,10]
[402148990,1768553624644,-500.0,0.00036712,10]
[402148991,1768553624653,-848.85,0.00036712,10]
[402148992,1768553624662,-500.0,0.00036712,10]
[402148993,1768553624671,-500.0,0.00036712,10]
[402148994,1768553624680,-1353.3,0.00036712,10]
[402148995,1768553624689,-500.0,0.00036712,10]
[402148996,1768553624699,-1109.73,0.00036712,10]
[402148997,1768553624709,-500.0,0.00036712,10]
[402148998,1768553624719,-1021.74,0.00036712,10]
[402148999,1768553624728,-623.92,0.00036712,10]
[402149000,1768553624737,-737.24,0.00036712,10]
[402149001,1768553624747,-539.09,0.00036712,10]
[402149002,1768553624756,-935.75,0.00036712,10]
[402149003,1768553624765,-1333.16,0.00036712,10]
[402149004,1768553624940,-907.64,0.00036712,10]
[402149005,1768553624950,-535.61,0.00036712,10]
[402149006,1768553624959,-686.98,0.00036712,10]
[402149007,1768553624969,-878.33,0.00036712,10]
[402149008,1768553624978,-664.49,0.00036712,10]
[402149009,1768553624987,-500.0,0.00036712,10]
[402149010,1768553624996,-1173.84,0.00036712,10]
[402149011,1768553625006,-500.0,0.00036712,10]
[402149012,1768553625017,-9836.18,0.00036712,10]
[402149013,1768553625026,-500.0,0.00036712,10]
[402149014,1768553625035,-500.0,0.00036712,10]
[402149015,1768553625045,-500.0,0.00036712,10]
[402149016,1768553625054,-1566.32,0.00036712,10]
[402149017,1768553625063,-754.56,0.00036712,10]
[402149018,1768553625073,-915.15,0.00036712,10]
[402149019,1768553625082,-500.0,0.00036712,10]
[402149020,1768553625092,-1137.0,0.00036712,10]
[402149021,1768553625101,-500.0,0.00036712,10]
[402149022,1768553625111,-600.0,0.00036712,30]
[402149023,1768553625120,-1000.0,0.00036721,5]
[402149024,1768553625129,-1000.0,0.00036721,5]
[402149025,1768553625138,-387.51708487,0.00036721,5]
[402149026,1768553625147,-262.94845954,0.00036721,5]
[402149027,1768553625156,-1000.0,0.00036721,5]
[402149028,1768553625165,-1000.0,0.00036721,5]
[402149029,1768553625175,-1000.0,0.00036721,5]
[402149030,1768553625183,-617.62820525,0.00036721,5]
[402149031,1768553625193,-1000.0,0.00036721,5]
[402149032,1768553625202,-1000.0,0.00036721,5]
[402149033,1768553625212,-1000.0,0.00036721,5]
[402149034,1768553625223,-1000.0,0.00036721,5]
[402149035,1768553625232,-1000.0,0.00036721,5]
[402149036,1768553625241,-1000.0,0.00036721,5]
[402149037,1768553625250,-1000.0,0.00036721,5]
[402149038,1768553625259,-1000.0,0.00036721,5]
[402149039,1768553625268,-1000.0,0.00036721,5]
[402149040,1768553625276,-500.79999771,0.00036721,5]
[402149041,1768553625285,-1000.0,0.00036721,5]
[402149042,1768553625295,-1000.0,0.00036721,5]
[402149043,1768553625305,-1000.0,0.00036721,5]
[402149044,1768553625313,-1000.0,0.00036721,5]
[402149045,1768553625323,-1000.0,0.00036721,5]
[402149046,1768553625332,-1000.0,0.00036721,5]
[402149047,1768553625341,-250.0,0.00036721,5]
[402149048,1768553625350,-1000.0,0.00036721,5]
[402149049,1768553625358,-1000.0,0.00036721,5]
[402149050,1768553625367,-500.65232285,0.00036721,5]
[402149051,1768553625377,-1000.0,0.00036721,5]
[402149052,1768553625386,-1000.0,0.00036721,5]
[402149053,1768553625395,-1000.0,0.00036721,5]
[402149054,1768553625404,-150.0,0.00036735,7]
[402149055,1768553625413,-238.90934185,0.00036754,7]
[402149056,1768553625422,-200.06159783,0.00036754,7]
[402149057,1768553625431,-162.8115885,0.00036754,7]
[402149058,1768553625440,-214.36344643,0.00036754,7]
[402149059,1768553625449,-203.67457519,0.00036754,7]
[402149060,1768553625459,-303.49476013,0.00036754,7]
[402149061,1768553625468,-167.99625046,0.00036754,7]
[402149062,1768553625477,-150.0,0.00036756,7]
[402149063,1768553625486,-150.0,0.00036801,7]
[402149064,1768553625495,-238.90934185,0.00036811,7]
[402149065,1768553625504,-200.06159783,0.00036811,7]
[402149066,1768553625513,-162.8115885,0.00036811,7]
[402149067,1768553625523,-214.36344643,0.00036811,7]
[402149068,1768553625532,-203.67457519,0.00036811,7]
[402149069,1768553625543,-303.49476013,0.00036811,7]
[402149070,1768553625552,-167.99625046,0.00036811,7]
[402149071,1768553625561,-150.0,0.00036823,7]
[402149072,1768553625570,-238.90934185,0.00036868,7]
[402149073,1768553625581,-200.06159783,0.00036868,7]
[402149074,1768553625590,-162.8115885,0.00036868,7]
[402149075,1768553625599,-214.36344643,0.00036868,7]
[402149076,1768553625610,-203.67457519,0.00036868,7]
[402149077,1768553625620,-303.49476013,0.00036868,7]
[402149078,1768553625629,-167.99625046,0.00036868,7]
[402149079,1768553625638,-150.0,0.00036872,7]
[402149080,1768553625648,-500.0,0.00036876,120]
[402149081,1768553625659,-500.0,0.00036876,120]
[402149082,1768553625668,-2010.36296469,0.00036888,60]
[402149083,1768553625678,-209.0,0.0003689,30]
[402149084,1768553625687,-238.90934185,0.00036926,7]
[402149085,1768553625696,-200.06159783,0.00036926,7]
[402149086,1768553625706,-162.8115885,0.00036926,7]
[402149087,1768553625716,-214.36344643,0.00036926,7]
[402149088,1768553625726,-203.67457519,0.00036926,7]
[402149089,1768553625735,-303.49476013,0.00036926,7]
[402149090,1768553625746,-167.99625046,0.00036926,7]
[402149091,1768553625756,-150.0,0.0003694,7]
[402149092,1768553625766,-150.0,0.00036945,7]
[402149093,1768553625777,-150.0,0.00036961,7]
[402149094,1768553625787,-150.0,0.00036972,7]
[402149095,1768553625799,-150.0,0.00036973,5]
[402149096,1768553625808,-238.90934185,0.00036983,7]
[402149097,1768553625817,-200.06159783,0.00036983,7]
[402149098,1768553625826,-162.8115885,0.00036983,7]
[402149099,1768553625836,-214.36344643,0.00036983,7]
[402149100,1768553625845,-203.67457519,0.00036983,7]
[402149101,1768553625855,-303.49476013,0.00036983,7]
[402149102,1768553625864,-167.99625046,0.00036983,7]
[402149103,1768553625873,-1000.0,0.00036986,2]
[402149104,1768553625882,-567.28,0.00036986,10]
[402149105,1768553625892,-1031.15,0.00036986,10]
[402149106,1768553625902,-151.0,0.00036986,10]
[402149107,1768553625911,-153.269825,0.00036986,10]
[402149108,1768553625921,-199.543983,0.00036986,10]
[402149109,1768553625930,-163.978129,0.00036986,10]
[402149110,1768553625940,-500.0,0.00036986,10]
[402149111,1768553625950,-500.0,0.00036986,10]
[402149112,1768553625959,-500.0,0.00036986,10]
[402149113,1768553625969,-808.21,0.00036986,10]
[402149114,1768553625978,-813.73,0.00036986,10]
[402149115,1768553625987,-973.06,0.00036986,10]
[402149116,1768553625996,-504.36,0.00036986,10]
[402149117,1768553626006,-500.0,0.00036986,10]
[402149118,1768553626015,-674.01,0.00036986,10]
[402149119,1768553626025,-500.0,0.00036986,10]
[402149120,1768553626034,-500.0,0.00036986,10]
[402149121,1768553626043,-1037.35,0.00036986,10]
[402149122,1768553626053,-525.62,0.00036986,10]
[402149123,1768553626063,-1211.73,0.00036986,10]
[402149124,1768553626073,-500.0,0.00036986,10]
[402149125,1768553626083,-654.54,0.00036986,10]
[402149126,1768553626092,-902.4,0.00036986,10]
[402149127,1768553626102,-500.0,0.00036986,10]
[402149128,1768553626111,-548.97,0.00036986,10]
[402149129,1768553626122,-915.0,0.00036986,10]
[402149130,1768553626132,-500.0,0.00036986,10]
[402149131,1768553626141,-786.94,0.00036986,10]
[402149132,1768553626150,-1003.52,0.00036986,10]
[402149133,1768553626159,-500.0,0.00036986,10]
[402149134,1768553626168,-500.0,0.00036986,10]
[402149135,1768553626177,-553.01634687,0.00036986,10]
[402149136,1768553626186,-500.0,0.00036986,10]
[402149137,1768553626195,-500.0,0.00036986,10]
[402149138,1768553626205,-500.0,0.00036986,10]
[402149139,1768553626214,-837.95,0.00036986,10]
[402149140,1768553626223,-551.36,0.00036986,10]
[402149141,1768553626232,-500.0,0.00036986,10]
[402149142,1768553626243,-548.17,0.00036986,10]
[402149143,1768553626253,-500.0,0.00036986,10]
[402149144,1768553626263,-500.0,0.00036986,10]
[402149145,1768553626273,-517.88158924,0.00036986,10]
[402149146,1768553626282,-1196.74,0.00036986,10]
[402149147,1768553626291,-587.74,0.00036986,10]
[402149148,1768553626300,-167.20764354,0.00036986,10]
[402149149,1768553626309,-500.0,0.00036986,10]
[402149150,1768553626319,-1100.8,0.00036986,10]
[402149151,1768553626329,-500.0,0.00036986,10]
[402149152,1768553626338,-1067.27,0.00036986,10]
[402149153,1768553626347,-500.0,0.00036986,10]
[402149154,1768553626356,-500.0,0.00036986,10]
[402149155,1768553626365,-271.67984845,0.00036986,10]
[402149156,1768553626375,-826.56,0.00036986,10]
[402149157,1768553626384,-505.81338198,0.00036986,10]
[402149158,1768553626394,-500.0,0.00036986,10]
[402149159,1768553626403,-875.73,0.00036986,10]
[402149160,1768553626412,-866.61,0.00036986,10]
[402149161,1768553626421,-542.86,0.00036986,10]
[402149162,1768553626430,-500.0,0.00036986,10]
[402149163,1768553626439,-513.96,0.00036986,10]
[402149164,1768553626448,-500.0,0.00036986,10]
[402149165,1768553626457,-509.14826463,0.00036986,10]
[402149166,1768553626467,-853.02,0.00036986,10]
[402149167,1768553626476,-500.0,0.00036986,10]
[402149168,1768553626485,-500.0,0.00036986,10]
[402149169,1768553626494,-625.29,0.00036986,10]
[402149170,1768553626503,-568.61,0.00036986,10]
[402149171,1768553626512,-504.24941436,0.00036986,10]
[402149172,1768553626521,-500.0,0.00036986,10]
[402149173,1768553626530,-500.0,0.00036986,10]
[402149174,1768553626544,-500.0,0.00036986,10]
[402149175,1768553626553,-500.0,0.00036986,10]
[402149176,1768553626562,-503.47,0.00036986,10]
[402149177,1768553626571,-500.0,0.00036986,10]
[402149178,1768553626581,-500.0,0.00036986,10]
[402149179,1768553626591,-500.0,0.00036986,10]
[402149180,1768553626600,-500.0,0.00036986,10]
[402149181,1768553626611,-1479.39,0.00036986,10]
[402149182,1768553626620,-668.37,0.00036986,10]
[402149183,1768553626630,-554.51,0.00036986,10]
[402149184,1768553626639,-823.81,0.00036986,10]
[402149185,1768553626648,-522.66,0.00036986,10]
[402149186,1768553626657,-632.8,0.00036986,10]
[402149187,1768553626666,-760.77,0.00036986,10]
[402149188,1768553626676,-500.0,0.00036986,10]
[402149189,1768553626685,-500.0,0.00036986,10]
[402149190,1768553626694,-540.98,0.00036986,10]
[402149191,1768553626703,-500.0,0.00036986,10]
[402149192,1768553626713,-500.0,0.00036986,10]
[402149193,1768553626722,-500.0,0.00036986,10]
[402149194,1768553626732,-500.0,0.00036986,10]
[402149195,1768553626742,-745.1,0.00036986,10]
[402149196,1768553626751,-513.95,0.00036986,10]
[402149197,1768553626760,-543.44,0.00036986,10]
[402149198,1768553626770,-766.12,0.00036986,10]
[402149199,1768553626779,-500.0,0.00036986,5]
[402149200,1768553626788,-500.0,0.00036986,10]
[402149201,1768553626798,-500.0,0.00036986,10]
[402149202,1768553626807,-602.84,0.00036986,10]
[402149203,1768553626816,-681.64,0.00036986,10]
[402149204,1768553626825,-946.6,0.00036986,10]
[402149205,1768553626835,-982.01,0.00036986,10]
[402149206,1768553626844,-500.0,0.00036986,10]
[402149207,1768553626854,-500.0,0.00036986,10]
[402149208,1768553626863,-1431.59,0.00036986,10]
[402149209,1768553626872,-500.0,0.00036986,10]
[402149210,1768553626882,-582.81,0.00036986,10]
[402149211,1768553626891,-500.0,0.00036986,10]
[402149212,1768553626901,-1103.68,0.00036986,5]
[402149213,1768553626910,-500.0,0.00036986,10]
[402149214,1768553626920,-500.0,0.00036986,10]
[402149215,1768553626929,-500.0,0.00036986,10]
[402149216,1768553626939,-222.92914745,0.00036986,10]
[402149217,1768553626948,-872.15,0.00036986,10]
[402149218,1768553626957,-703.99,0.00036986,10]
[402149219,1768553626966,-548.64,0.00036986,10]
[402149220,1768553626976,-850.54,0.00036986,10]
[402149221,1768553626985,-1034.71,0.00036986,10]
[402149222,1768553626995,-275.58054747,0.00036986,10]
[402149223,1768553627005,-500.0,0.00036986,10]
[402149224,1768553627014,-500.0,0.00036986,10]
[402149225,1768553627024,-500.0,0.00036986,10]
[402149226,1768553627033,-712.34,0.00036986,10]
[402149227,1768553627042,-500.0,0.00036986,10]
[402149228,1768553627052,-324.01275961,0.00036986,10]
[402149229,1768553627061,-1048.59,0.00036986,10]
[402149230,1768553627071,-500.0,0.00036986,10]
[402149231,1768553627080,-500.0,0.00036986,10]
[402149232,1768553627089,-500.0,0.00036986,10]
[402149233,1768553627099,-500.0,0.00036986,10]
[402149234,1768553627109,-797.78,0.00036986,10]
[402149235,1768553627119,-864.57,0.00036986,10]
[402149236,1768553627128,-500.0,0.00036986,10]
[402149237,1768553627138,-500.0,0.00036986,10]
[402149238,1768553627147,-500.0,0.00036986,10]
[402149239,1768553627156,-669.34,0.00036986,10]
[402149240,1768553627165,-500.0,0.00036986,10]
[402149241,1768553627175,-1695.98,0.00036986,10]
[402149242,1768553627184,-500.0,0.00036986,10]
[402149243,1768553627193,-500.0,0.00036986,10]
[402149244,1768553627203,-500.0,0.00036986,10]
[402149245,1768553627213,-746.93,0.00036986,10]
[402149246,1768553627222,-710.63,0.00036986,10]
[402149247,1768553627231,-500.0,0.00036986,10]
[402149248,1768553627241,-576.53,0.00036986,10]
[402149249,1768553627253,-551.55,0.00036986,10]
[402149250,1768553627262,-848.31,0.00036986,10]
[402149251,1768553627272,-500.0,0.00036986,10]
[402149252,1768553627282,-500.0,0.00036986,10]
[402149253,1768553627292,-500.0,0.00036986,10]
[402149254,1768553627302,-640.15,0.00036986,10]
[402149255,1768553627311,-893.03,0.00036986,10]
[402149256,1768553627321,-829.07,0.00036986,10]
[402149257,1768553627330,-500.0,0.00036986,10]
[402149258,1768553627339,-514.36143116,0.00036986,10]
[402149259,1768553627348,-1044.65,0.00036986,2]
[402149260,1768553627357,-580.09,0.00036986,10]
[402149261,1768553627366,-2280.83,0.00036986,10]
[402149262,1768553627376,-950.38,0.00036986,10]
[402149263,1768553627385,-925.85,0.00036986,10]
[402149264,1768553627393,-926.38,0.00036986,10]
[402149265,1768553627402,-1091.37,0.00036986,10]
[402149266,1768553627412,-934.74,0.00036986,10]
[402149267,1768553627423,-500.0,0.00036986,10]
[402149268,1768553627432,-1096.7,0.00036986,10]
[402149269,1768553627441,-500.0,0.00036986,120]
[402149270,1768553627450,-500.0,0.00036986,10]
[402149271,1768553627459,-500.0,0.00036986,10]
[402149272,1768553627468,-500.0,0.00036986,10]
[402149273,1768553627477,-500.0,0.00036986,10]
[402149274,1768553627486,-615.77,0.00036986,10]
[402149275,1768553627495,-694.36,0.00036986,10]
[402149276,1768553627504,-816.08,0.00036986,10]
[402149277,1768553627513,-703.54,0.00036986,10]
[402149278,1768553627522,-1150.42,0.00036986,10]
[402149279,1768553627531,-500.0,0.00036986,10]
[402149280,1768553627545,-658.36,0.00036986,10]
[402149281,1768553627554,-788.58,0.00036986,10]
[402149282,1768553627563,-578.18,0.00036986,10]
[402149283,1768553627573,-1428.02,0.00036986,10]
[402149284,1768553627585,-500.0,0.00036986,10]
[402149285,1768553627594,-705.82,0.00036986,10]
[402149286,1768553627604,-931.05,0.00036986,10]
[402149287,1768553627615,-577.64,0.00036986,10]
[402149288,1768553627624,-528.44,0.00036986,10]
[402149289,1768553627634,-500.0,0.00036986,10]
[402149290,1768553627643,-2108.45,0.00036986,10]
[402149291,1768553627653,-500.0,0.00036986,10]
[402149292,1768553627662,-1149.82,0.00036986,10]
[402149293,1768553627671,-500.0,0.00036986,10]
[402149294,1768553627680,-683.35,0.00036986,10]
[402149295,1768553627690,-500.0,0.00036986,10]
[402149296,1768553627699,-959.04,0.00036986,10]
[402149297,1768553627708,-500.0,0.00036986,10]
[402149298,1768553627717,-500.0,0.00036986,10]
[402149299,1768553627726,-500.0,0.00036986,10]
[402149300,1768553627735,-700.17,0.00036986,10]
[402149301,1768553627744,-500.0,0.00036986,10]
[402149302,1768553627753,-500.0,0.00036986,10]
[402149303,1768553627763,-500.0,0.00036986,10]
[402149304,1768553627772,-625.74,0.00036986,10]
[402149305,1768553627782,-500.0,0.00036986,10]
[402149306,1768553627792,-500.0,0.00036986,10]
[402149307,1768553627803,-500.0,0.00036986,10]
[402149308,1768553627812,-754.4,0.00036986,10]
[402149309,1768553627823,-500.0,0.00036986,10]
[402149310,1768553627832,-500.0,0.00036986,10]
[402149311,1768553627841,-737.5,0.00036986,10]
[402149312,1768553627851,-637.87,0.00036986,10]
[402149313,1768553627861,-625.2,0.00036986,10]
[402149314,1768553627871,-641.84,0.00036986,10]
[402149315,1768553627881,-610.78,0.00036986,10]
[402149316,1768553627890,-544.89,0.00036986,10]
[402149317,1768553627899,-523.76,0.00036986,10]
[402149318,1768553627909,-500.0,0.00036986,10]
[402149319,1768553627919,-500.0,0.00036986,10]
[402149320,1768553627928,-500.0,0.00036986,10]
[402149321,1768553627938,-500.0,0.00036986,10]
[402149322,1768553627947,-551.65,0.00036986,10]
[402149323,1768553627957,-1594.08,0.00036986,10]
[402149324,1768553627966,-500.0,0.00036986,10]
[402149325,1768553627976,-500.0,0.00036986,10]
[402149326,1768553627985,-500.0,0.00036986,10]
[402149327,1768553627994,-500.0,0.00036986,10]
[402149328,1768553628004,-796.44,0.00036986,10]
[402149329,1768553628015,-288.6448176,0.00036986,10]
[402149330,1768553628024,-500.0,0.00036986,10]
[402149331,1768553628034,-458.31398929,0.00036986,10]
[402149332,1768553628044,-500.0,0.00036986,10]
[402149333,1768553628053,-1146.06,0.00036986,10]
[402149334,1768553628063,-567.16,0.00036986,10]
[402149335,1768553628072,-517.33,0.00036986,10]
[402149336,1768553628082,-500.0,0.00036986,10]
[402149337,1768553628091,-522.75,0.00036986,10]
[402149338,1768553628101,-500.0,0.00036986,10]
[402149339,1768553628111,-500.0,0.00036986,10]
[402149340,1768553628122,-500.0,0.00036986,10]
[402149341,1768553628131,-751.2,0.00036986,10]
[402149342,1768553628142,-500.0,0.00036986,10]
[402149343,1768553628151,-662.29,0.00036986,10]
[402149344,1768553628160,-669.08,0.00036986,10]
[402149345,1768553628170,-500.0,0.00036986,10]
[402149346,1768553628179,-677.54,0.00036986,10]
[402149347,1768553628188,-1168.86,0.00036986,10]
[402149348,1768553628198,-500.0,0.00036986,10]
[402149349,1768553628207,-1117.06,0.00036986,10]
[402149350,1768553628217,-1648.88,0.00036986,10]
[402149351,1768553628226,-636.52,0.00036986,10]
[402149352,1768553628236,-636.43,0.00036986,10]
[402149353,1768553628245,-575.94,0.00036986,10]
[402149354,1768553628255,-716.91,0.00036986,10]
[402149355,1768553628264,-876.77,0.00036986,10]
[402149356,1768553628273,-500.0,0.00036986,10]
[402149357,1768553628283,-500.0,0.00036986,10]
[402149358,1768553628292,-500.0,0.00036986,10]
[402149359,1768553628301,-500.0,0.00036986,10]
[402149360,1768553628312,-500.0,0.00036986,10]
[402149361,1768553628323,-990.78,0.00036986,10]
[402149362,1768553628332,-541.15,0.00036986,10]
[402149363,1768553628342,-1150.93,0.00036986,10]
[402149364,1768553628351,-909.88,0.00036986,10]
[402149365,1768553628360,-500.0,0.00036986,10]
[402149366,1768553628370,-903.48,0.00036986,10]
[402149367,1768553628380,-527.48,0.00036986,10]
[402149368,1768553628389,-500.0,0.00036986,10]
[402149369,1768553628399,-744.14,0.00036986,10]
[402149370,1768553628408,-507.96,0.00036986,10]
[402149371,1768553628418,-662.66,0.00036986,10]
[402149372,1768553628427,-690.13,0.00036986,10]
[402149373,1768553628436,-519.9,0.00036986,10]
[402149374,1768553628446,-1521.24,0.00036986,10]
[402149375,1768553628455,-823.6,0.00036986,10]
[402149376,1768553628464,-500.0,0.00036986,10]
[402149377,1768553628473,-500.0,0.00036986,10]
[402149378,1768553628482,-1331.43,0.00036986,10]
[402149379,1768553628491,-284.25494068,0.00036986,10]
[402149380,1768553628501,-732.95,0.00036986,10]
[402149381,1768553628510,-1326.59,0.00036986,10]
[402149382,1768553628520,-1280.38,0.00036986,10]
[402149383,1768553628529,-500.0,0.00036986,10]
[402149384,1768553628541,-500.0,0.00036986,10]
[402149385,1768553628553,-791.99,0.00036986,10]
[402149386,1768553628563,-500.0,0.00036986,10]
[402149387,1768553628573,-500.0,0.00036986,10]
[402149388,1768553628584,-512.72,0.00036986,10]
[402149389,1768553628594,-979.74,0.00036986,10]
[402149390,1768553628603,-422.36692227,0.00036986,10]
[402149391,1768553628614,-500.0,0.00036986,10]
[402149392,1768553628624,-500.0,0.00036986,10]
[402149393,1768553628633,-644.37,0.00036986,10]
[402149394,1768553628642,-577.2,0.00036986,10]
[402149395,1768553628651,-970.71,0.00036986,10]
[402149396,1768553628660,-570.0,0.00036986,10]
[402149397,1768553628669,-500.0,0.00036986,10]
[402149398,1768553628678,-500.0,0.00036986,10]
[402149399,1768553628687,-500.0,0.00036986,10]
[402149400,1768553628696,-500.0,0.00036986,10]
[402149401,1768553628706,-500.0,0.00036986,10]
[402149402,1768553628715,-751.52,0.00036986,10]
[402149403,1768553628724,-1015.29,0.00036986,10]
[402149404,1768553628732,-500.0,0.00036986,10]
[402149405,1768553628741,-518.25,0.00036986,10]
[402149406,1768553628750,-500.0,0.00036986,10]
[402149407,1768553628759,-685.85,0.00036986,10]
[402149408,1768553628767,-612.29,0.00036986,10]
[402149409,1768553628776,-500.0,0.00036986,10]
[402149410,1768553628785,-500.0,0.00036986,10]
[402149411,1768553628794,-806.51,0.00036986,10]
[402149412,1768553628803,-500.0,0.00036986,10]
[402149413,1768553628812,-500.0,0.00036986,10]
[402149414,1768553628822,-500.0,0.00036986,10]
[402149415,1768553628830,-500.0,0.00036986,10]
[402149416,1768553628839,-695.39,0.00036986,10]
[402149417,1768553628849,-549.65,0.00036986,10]
[402149418,1768553628858,-607.83,0.00036986,10]
[402149419,1768553628868,-500.0,0.00036986,10]
[402149420,1768553628877,-1220.06,0.00036986,10]
[402149421,1768553628887,-1662.06,0.00036986,10]
[402149422,1768553628896,-500.0,0.00036986,10]
[402149423,1768553628905,-500.0,0.00036986,10]
[402149424,1768553628914,-500.0,0.00036986,10]
[402149425,1768553628924,-500.0,0.00036986,10]
[402149426,1768553628934,-500.0,0.00036986,10]
[402149427,1768553628943,-500.0,0.00036986,10]
[402149428,1768553628953,-500.0,0.00036986,10]
[402149429,1768553628962,-1639.22,0.00036986,10]
[402149430,1768553629075,-500.0,0.00036986,10]
[402149431,1768553629116,-500.0,0.00036986,10]
[402149432,1768553629127,-500.0,0.00036986,10]
[402149433,1768553629135,-500.0,0.00036986,10]
[402149434,1768553629144,-908.6,0.00036986,10]
[402149435,1768553629153,-500.0,0.00036986,10]
[402149436,1768553629163,-500.0,0.00036986,10]
[402149437,1768553629172,-1617.91,0.00036986,10]
[402149438,1768553629180,-816.75,0.00036986,10]
[402149439,1768553629189,-1143.12,0.00036986,10]
[402149440,1768553629200,-500.0,0.00036986,10]
[402149441,1768553629209,-500.0,0.00036986,10]
[402149442,1768553629218,-500.0,0.00036986,10]
[402149443,1768553629228,-500.0,0.00036986,10]
[402149444,1768553629237,-716.45,0.00036986,10]
[402149445,1768553629247,-500.0,0.00036986,10]
[402149446,1768553629256,-885.26,0.00036986,10]
[402149447,1768553629265,-1027.78,0.00036986,10]
[402149448,1768553629274,-500.0,0.00036986,10]
[402149449,1768553629284,-678.11,0.00036986,10]
[402149450,1768553629293,-1096.77,0.00036986,10]
[402149451,1768553629303,-520.0,0.00036986,10]
[402149452,1768553629312,-500.0,0.00036986,10]
[402149453,1768553629322,-681.79,0.00036986,10]
[402149454,1768553629331,-412.56408567,0.00036986,10]
[402149455,1768553629341,-702.08,0.00036986,10]
[402149456,1768553629350,-1477.47,0.00036986,10]
[402149457,1768553629359,-500.0,0.00036986,10]
[402149458,1768553629368,-500.0,0.00036986,10]
[402149459,1768553629378,-989.99,0.00036986,10]
[402149460,1768553629387,-676.3,0.00036986,10]
[402149461,1768553629396,-500.0,0.00036986,10]
[402149462,1768553629406,-500.0,0.00036986,10]
[402149463,1768553629417,-500.0,0.00036986,10]
[402149464,1768553629426,-912.84,0.00036986,10]
[402149465,1768553629437,-500.0,0.00036986,10]
[402149466,1768553629447,-807.54,0.00036986,10]
[402149467,1768553629456,-500.0,0.00036986,10]
[402149468,1768553629467,-591.47,0.00036986,10]
[402149469,1768553629478,-584.01095804,0.00036986,10]
[402149470,1768553629487,-1293.68,0.00036986,10]
[402149471,1768553629498,-500.0,0.00036986,10]